[Event "Titled Tuesday Blitz July 4 Late 2023"]
[White "Buchenau, Frank"]
[Black "Sanchez, Robert"]
[WhiteFideId "4604350"]
[BlackFideId "2034360"]
[WhiteElo "2412"]
[BlackElo "2195"]
[Result "0-1"]
[Round "7"]
[TimeControl "180+2"]
[Date "2023.07.04"]
[WhiteClock "0:00:00"]
[BlackClock "0:00:41"]
[Board "129"]

1. e4 {[%clk 0:02:57]}  e6 {[%clk 0:02:59]} 2. d4 {[%clk 0:02:56]}  d5 {[%clk 0:02:59]} 3. Nd2 {[%clk 0:02:55]}  c5 {[%clk 0:02:58]} 4. Ngf3 {[%clk 0:02:55]}  Be7 {[%clk 0:02:52]} 5. dxc5 {[%clk 0:02:47]}  Bxc5 {[%clk 0:02:48]} 6. Bd3 {[%clk 0:02:45]}  Nc6 {[%clk 0:02:48]} 7. O-O {[%clk 0:02:43]}  Nf6 {[%clk 0:02:46]} 8. e5 {[%clk 0:02:42]}  Nd7 {[%clk 0:02:46]} 9. Nb3 {[%clk 0:02:41]}  Be7 {[%clk 0:02:46]} 10. Re1 {[%clk 0:02:39]}  Qc7 {[%clk 0:02:44]} 11. Bf4 {[%clk 0:02:37]}  h6 {[%clk 0:02:42]} 12. Bg3 {[%clk 0:02:36]}  g5 {[%clk 0:02:40]} 13. h3 {[%clk 0:02:22]}  h5 {[%clk 0:02:39]} 14. Qe2 {[%clk 0:02:19]}  a5 {[%clk 0:02:37]} 15. c4 {[%clk 0:02:04]}  dxc4 {[%clk 0:02:25]} 16. Bxc4 {[%clk 0:02:03]}  g4 {[%clk 0:02:24]} 17. hxg4 {[%clk 0:02:03]}  hxg4 {[%clk 0:02:24]} 18. Nh2 {[%clk 0:02:00]}  a4 {[%clk 0:02:21]} 19. Nd2 {[%clk 0:01:52]}  Nd4 {[%clk 0:02:17]} 20. Qxg4 {[%clk 0:01:34]}  Nc2 {[%clk 0:01:59]} 21. Qg7 {[%clk 0:01:34]}  Rf8 {[%clk 0:01:58]} 22. Ng4 {[%clk 0:01:28]}  Nxa1 {[%clk 0:01:49]} 23. Rxa1 {[%clk 0:01:17]}  b5 {[%clk 0:01:30]} 24. Bxb5 {[%clk 0:01:07]}  Qa5 {[%clk 0:01:30]} 25. Nf6+ {[%clk 0:00:55]}  Bxf6 {[%clk 0:01:26]} 26. Bxd7+ {[%clk 0:00:18]}  Bxd7 {[%clk 0:01:27]} 27. Qxf6 {[%clk 0:00:14]}  Qd8 {[%clk 0:01:13]} 28. Ne4 {[%clk 0:00:09]}  Qxf6 {[%clk 0:01:06]} 29. Nxf6+ {[%clk 0:00:09]}  Kd8 {[%clk 0:01:07]} 30. Rd1 {[%clk 0:00:08]}  Ra7 {[%clk 0:01:08]} 31. f4 {[%clk 0:00:07]}  Kc8 {[%clk 0:01:07]} 32. Bf2 {[%clk 0:00:06]}  Rb7 {[%clk 0:01:06]} 33. Bc5 {[%clk 0:00:06]}  Rh8 {[%clk 0:00:59]} 34. b4 {[%clk 0:00:06]}  axb3 {[%clk 0:00:58]} 35. axb3 {[%clk 0:00:06]}  Bc6 {[%clk 0:00:52]} 36. Kf2 {[%clk 0:00:05]}  Rxb3 {[%clk 0:00:49]} 37. Rc1 {[%clk 0:00:02]}  Kb7 {[%clk 0:00:47]} 38. Bd6 {[%clk 0:00:02]}  Rb2+ {[%clk 0:00:44]} 39. Ke3 {[%clk 0:00:00]}  Rxg2 {[%clk 0:00:41]} 0-1


[Site "https://www.chess.com"]

[Event "Titled Tuesday Blitz July 4 Late 2023"]
[White "Mangialardo, Tiago Carvalho"]
[Black "Coelho, Ramyres Santana"]
[WhiteFideId "2130718"]
[BlackFideId "2120690"]
[WhiteElo "2115"]
[BlackElo "2299"]
[Result "1/2-1/2"]
[Round "7"]
[TimeControl "180+2"]
[Date "2023.07.04"]
[WhiteClock "0:00:06"]
[BlackClock "0:00:56"]
[Board "130"]

1. e4 {[%clk 0:03:00]}  c5 {[%clk 0:02:59]} 2. Nf3 {[%clk 0:03:00]}  d6 {[%clk 0:02:59]} 3. Bb5+ {[%clk 0:02:58]}  Nd7 {[%clk 0:02:45]} 4. a3 {[%clk 0:02:58]}  a6 {[%clk 0:02:45]} 5. Bc4 {[%clk 0:02:57]}  e6 {[%clk 0:02:45]} 6. O-O {[%clk 0:02:49]}  b5 {[%clk 0:02:45]} 7. Be2 {[%clk 0:02:47]}  Bb7 {[%clk 0:02:45]} 8. d3 {[%clk 0:02:47]}  Ngf6 {[%clk 0:02:45]} 9. Re1 {[%clk 0:02:47]}  Be7 {[%clk 0:02:45]} 10. Bf1 {[%clk 0:02:44]}  O-O {[%clk 0:02:45]} 11. c3 {[%clk 0:02:33]}  h6 {[%clk 0:02:45]} 12. d4 {[%clk 0:02:33]}  cxd4 {[%clk 0:02:46]} 13. cxd4 {[%clk 0:02:34]}  Rc8 {[%clk 0:02:47]} 14. Nc3 {[%clk 0:02:34]}  d5 {[%clk 0:02:45]} 15. e5 {[%clk 0:02:30]}  Ne4 {[%clk 0:02:45]} 16. Bd3 {[%clk 0:01:54]}  Nxc3 {[%clk 0:02:44]} 17. bxc3 {[%clk 0:01:55]}  Rxc3 {[%clk 0:02:44]} 18. Qe2 {[%clk 0:01:36]}  Qb6 {[%clk 0:02:34]} 19. Bd2 {[%clk 0:01:33]}  Rxa3 {[%clk 0:02:32]} 20. Rxa3 {[%clk 0:01:29]}  Bxa3 {[%clk 0:02:33]} 21. Bb1 {[%clk 0:01:24]}  Rc8 {[%clk 0:02:10]} 22. Qd3 {[%clk 0:01:15]}  Nf8 {[%clk 0:02:04]} 23. Qxa3 {[%clk 0:01:12]}  Rc4 {[%clk 0:01:48]} 24. Bb4 {[%clk 0:01:09]}  Ng6 {[%clk 0:01:40]} 25. h4 {[%clk 0:00:40]}  Nf8 {[%clk 0:01:32]} 26. Bxf8 {[%clk 0:00:37]}  b4 {[%clk 0:01:31]} 27. Bxb4 {[%clk 0:00:32]}  Rxb4 {[%clk 0:01:32]} 28. Qd3 {[%clk 0:00:32]}  a5 {[%clk 0:01:32]} 29. Qh7+ {[%clk 0:00:32]}  Kf8 {[%clk 0:01:32]} 30. Bd3 {[%clk 0:00:24]}  Rb3 {[%clk 0:01:30]} 31. Rc1 {[%clk 0:00:18]}  a4 {[%clk 0:01:14]} 32. Bc2 {[%clk 0:00:13]}  Rc3 {[%clk 0:01:11]} 33. Rb1 {[%clk 0:00:08]}  Qc7 {[%clk 0:01:03]} 34. Bxa4 {[%clk 0:00:07]}  Rc1+ {[%clk 0:01:03]} 35. Rxc1 {[%clk 0:00:05]}  Qxc1+ {[%clk 0:01:04]} 36. Kh2 {[%clk 0:00:05]}  Qf4+ {[%clk 0:01:05]} 37. Kh3 {[%clk 0:00:05]}  g6 {[%clk 0:00:59]} 38. Qh8+ {[%clk 0:00:05]}  Ke7 {[%clk 0:00:59]} 39. Qf6+ {[%clk 0:00:05]}  Qxf6 {[%clk 0:00:59]} 40. exf6+ {[%clk 0:00:06]}  Kxf6 {[%clk 0:01:00]} 41. Kg3 {[%clk 0:00:03]}  Ba6 {[%clk 0:00:58]} 42. Ne5 {[%clk 0:00:02]}  Bf1 {[%clk 0:00:57]} 43. Be8 {[%clk 0:00:02]}  Ba6 {[%clk 0:00:58]} 44. Bxf7 {[%clk 0:00:02]}  Bb7 {[%clk 0:00:59]} 45. Bxg6 {[%clk 0:00:02]}  Kg7 {[%clk 0:00:58]} 46. Bd3 {[%clk 0:00:03]}  Kf6 {[%clk 0:00:58]} 47. Kf4 {[%clk 0:00:03]}  Bc8 {[%clk 0:00:57]} 48. g4 {[%clk 0:00:04]}  h5 {[%clk 0:00:57]} 49. g5+ {[%clk 0:00:05]}  Kg7 {[%clk 0:00:57]} 50. Nc6 {[%clk 0:00:04]}  Bd7 {[%clk 0:00:56]} 51. Nd8 {[%clk 0:00:04]}  Be8 {[%clk 0:00:56]} 52. Ke5 {[%clk 0:00:05]}  Ba4 {[%clk 0:00:56]} 53. Nxe6+ {[%clk 0:00:06]}  Kh8 {[%clk 0:00:55]} 54. Kxd5 {[%clk 0:00:06]}  Bd1 {[%clk 0:00:56]} 55. Ke5 {[%clk 0:00:06]}  Bf3 {[%clk 0:00:57]} 56. Kf6 {[%clk 0:00:06]}  Be4 {[%clk 0:00:54]} 57. Bxe4 {[%clk 0:00:06]}  Kg8 {[%clk 0:00:53]} 58. g6 {[%clk 0:00:06]}  Kh8 {[%clk 0:00:53]} 59. Ng5 {[%clk 0:00:06]}  Kg8 {[%clk 0:00:53]} 60. Bd5+ {[%clk 0:00:06]}  Kf8 {[%clk 0:00:53]} 61. g7+ {[%clk 0:00:07]}  Ke8 {[%clk 0:00:54]} 62. g8=Q+ {[%clk 0:00:06]}  Kd7 {[%clk 0:00:55]} 63. Qe6+ {[%clk 0:00:07]}  Kc7 {[%clk 0:00:55]} 64. Qc6+ {[%clk 0:00:06]}  Kb8 {[%clk 0:00:56]} 65. Qd7 {[%clk 0:00:06]} 1/2-1/2


[Site "https://www.chess.com"]

[Event "Titled Tuesday Blitz July 4 Late 2023"]
[White "Herman, Matthew"]
[Black "Tsukerman, Julia"]
[WhiteFideId "2028964"]
[BlackFideId "2621649"]
[WhiteElo "2476"]
[BlackElo "2091"]
[Result "1-0"]
[Round "7"]
[TimeControl "180+2"]
[Date "2023.07.04"]
[WhiteClock "0:01:11"]
[BlackClock "0:00:00"]
[Board "133"]

1. Nf3 {[%clk 0:03:00]}  d5 {[%clk 0:02:58]} 2. g3 {[%clk 0:03:01]}  Nf6 {[%clk 0:02:50]} 3. d3 {[%clk 0:03:01]}  e6 {[%clk 0:02:49]} 4. Bg2 {[%clk 0:03:01]}  Be7 {[%clk 0:02:49]} 5. O-O {[%clk 0:03:02]}  O-O {[%clk 0:02:49]} 6. Nbd2 {[%clk 0:03:01]}  c5 {[%clk 0:02:50]} 7. b3 {[%clk 0:03:01]}  b5 {[%clk 0:02:49]} 8. Bb2 {[%clk 0:03:02]}  Nc6 {[%clk 0:02:49]} 9. a4 {[%clk 0:03:02]}  b4 {[%clk 0:02:44]} 10. e3 {[%clk 0:02:57]}  Bb7 {[%clk 0:02:41]} 11. Qe2 {[%clk 0:02:55]}  a5 {[%clk 0:02:41]} 12. Rad1 {[%clk 0:02:55]}  Qc7 {[%clk 0:02:39]} 13. Rfe1 {[%clk 0:02:55]}  Rac8 {[%clk 0:02:38]} 14. h3 {[%clk 0:02:48]}  Rfe8 {[%clk 0:02:15]} 15. e4 {[%clk 0:02:39]}  Nd4 {[%clk 0:01:47]} 16. Nxd4 {[%clk 0:02:29]}  cxd4 {[%clk 0:01:38]} 17. e5 {[%clk 0:02:27]}  Nd7 {[%clk 0:01:32]} 18. Rc1 {[%clk 0:02:23]}  Bc5 {[%clk 0:01:28]} 19. Nf3 {[%clk 0:02:14]}  Qb6 {[%clk 0:01:26]} 20. Qd2 {[%clk 0:02:07]}  h6 {[%clk 0:01:06]} 21. Qf4 {[%clk 0:01:59]}  f6 {[%clk 0:00:40]} 22. exf6 {[%clk 0:01:55]}  Nxf6 {[%clk 0:00:36]} 23. Bxd4 {[%clk 0:01:49]}  Bxd4 {[%clk 0:00:28]} 24. Nxd4 {[%clk 0:01:49]}  Nd7 {[%clk 0:00:13]} 25. Nf3 {[%clk 0:01:31]}  Ba6 {[%clk 0:00:07]} 26. Ne5 {[%clk 0:01:20]}  Nxe5 {[%clk 0:00:05]} 27. Rxe5 {[%clk 0:01:13]}  Rf8 {[%clk 0:00:04]} 28. Qe3 {[%clk 0:01:11]}  Qxe3 {[%clk 0:00:00]} 29. Rxe3 {[%clk 0:01:11]} 1-0


[Site "https://www.chess.com"]

[Event "Titled Tuesday Blitz July 4 Late 2023"]
[White "Hartikainen, Jarmo"]
[Black "Burke, Paul"]
[WhiteFideId "503134"]
[BlackFideId "2605767"]
[WhiteElo "2161"]
[BlackElo "1939"]
[Result "1-0"]
[Round "7"]
[TimeControl "180+2"]
[Date "2023.07.04"]
[WhiteClock "0:00:38"]
[BlackClock "0:00:06"]
[Board "139"]

1. e4 {[%clk 0:03:00]}  e5 {[%clk 0:02:58]} 2. Nf3 {[%clk 0:03:00]}  Nc6 {[%clk 0:02:58]} 3. Bc4 {[%clk 0:03:00]}  Be7 {[%clk 0:02:58]} 4. c3 {[%clk 0:02:59]}  Nf6 {[%clk 0:02:58]} 5. Qe2 {[%clk 0:02:59]}  O-O {[%clk 0:02:58]} 6. d4 {[%clk 0:02:59]}  d6 {[%clk 0:02:58]} 7. h3 {[%clk 0:02:56]}  h6 {[%clk 0:02:33]} 8. O-O {[%clk 0:02:55]}  a6 {[%clk 0:02:17]} 9. a4 {[%clk 0:02:49]}  Bd7 {[%clk 0:02:03]} 10. Rd1 {[%clk 0:02:40]}  Qc8 {[%clk 0:02:02]} 11. Kh2 {[%clk 0:02:34]}  Nh5 {[%clk 0:01:54]} 12. Nxe5 {[%clk 0:02:13]}  dxe5 {[%clk 0:01:48]} 13. Qxh5 {[%clk 0:02:11]}  exd4 {[%clk 0:01:42]} 14. cxd4 {[%clk 0:02:07]}  Bf6 {[%clk 0:01:16]} 15. e5 {[%clk 0:01:57]}  Be7 {[%clk 0:01:08]} 16. Nc3 {[%clk 0:01:30]}  b5 {[%clk 0:00:54]} 17. axb5 {[%clk 0:01:14]}  axb5 {[%clk 0:00:53]} 18. Rxa8 {[%clk 0:01:13]}  Qxa8 {[%clk 0:00:52]} 19. Nxb5 {[%clk 0:00:59]}  Na5 {[%clk 0:00:27]} 20. Bd3 {[%clk 0:00:44]}  Bxb5 {[%clk 0:00:24]} 21. Bxb5 {[%clk 0:00:43]}  Nb3 {[%clk 0:00:06]} 22. Bxh6 {[%clk 0:00:38]} 1-0


[Site "https://www.chess.com"]

[Event "Titled Tuesday Blitz July 4 Late 2023"]
[White "Broca Jimenez, Fernando"]
[Black "Sainz Aguirre, Ignacio"]
[WhiteFideId "5104742"]
[BlackFideId "5101727"]
[WhiteElo "2239"]
[BlackElo "1944"]
[Result "0-1"]
[Round "7"]
[TimeControl "180+2"]
[Date "2023.07.04"]
[WhiteClock "0:00:09"]
[BlackClock "0:00:21"]
[Board "142"]

1. e4 {[%clk 0:02:59]}  e6 {[%clk 0:02:39]} 2. d4 {[%clk 0:02:56]}  d5 {[%clk 0:02:38]} 3. exd5 {[%clk 0:02:57]}  exd5 {[%clk 0:02:38]} 4. Bd3 {[%clk 0:02:57]}  Nc6 {[%clk 0:02:37]} 5. Nf3 {[%clk 0:02:57]}  Bd6 {[%clk 0:02:35]} 6. O-O {[%clk 0:02:57]}  Nge7 {[%clk 0:02:35]} 7. c3 {[%clk 0:02:57]}  Bg4 {[%clk 0:02:35]} 8. Nbd2 {[%clk 0:02:57]}  Qd7 {[%clk 0:02:34]} 9. Qc2 {[%clk 0:02:56]}  h6 {[%clk 0:02:29]} 10. b4 {[%clk 0:02:56]}  Bf5 {[%clk 0:02:20]} 11. b5 {[%clk 0:02:54]}  Bxd3 {[%clk 0:02:20]} 12. Qxd3 {[%clk 0:02:51]}  Nd8 {[%clk 0:02:17]} 13. Re1 {[%clk 0:02:37]}  O-O {[%clk 0:02:16]} 14. Nb3 {[%clk 0:02:31]}  Ne6 {[%clk 0:02:01]} 15. Ne5 {[%clk 0:02:22]}  Bxe5 {[%clk 0:02:00]} 16. Rxe5 {[%clk 0:02:23]}  Ng6 {[%clk 0:01:45]} 17. Re1 {[%clk 0:02:16]}  Rfe8 {[%clk 0:01:39]} 18. Bd2 {[%clk 0:02:11]}  a6 {[%clk 0:01:35]} 19. a4 {[%clk 0:01:59]}  axb5 {[%clk 0:01:07]} 20. Qxb5 {[%clk 0:01:48]}  c6 {[%clk 0:01:03]} 21. Qd3 {[%clk 0:01:33]}  Nef4 {[%clk 0:01:01]} 22. Bxf4 {[%clk 0:00:37]}  Rxe1+ {[%clk 0:01:00]} 23. Rxe1 {[%clk 0:00:35]}  Nxf4 {[%clk 0:01:01]} 24. Qd2 {[%clk 0:00:26]}  Qg4 {[%clk 0:00:57]} 25. g3 {[%clk 0:00:21]}  Nh3+ {[%clk 0:00:55]} 26. Kg2 {[%clk 0:00:21]}  Ng5 {[%clk 0:00:54]} 27. Qe3 {[%clk 0:00:11]}  Qh3+ {[%clk 0:00:38]} 28. Kg1 {[%clk 0:00:10]}  Qf5 {[%clk 0:00:36]} 29. f4 {[%clk 0:00:10]}  Ne4 {[%clk 0:00:34]} 30. a5 {[%clk 0:00:09]}  Qh5 {[%clk 0:00:30]} 31. Nc5 {[%clk 0:00:08]}  Rxa5 {[%clk 0:00:28]} 32. Nxe4 {[%clk 0:00:07]}  dxe4 {[%clk 0:00:28]} 33. Qxe4 {[%clk 0:00:08]}  Ra2 {[%clk 0:00:26]} 34. Qe8+ {[%clk 0:00:09]}  Kh7 {[%clk 0:00:24]} 35. Qe4+ {[%clk 0:00:09]}  g6 {[%clk 0:00:21]} 36. Rf1 {[%clk 0:00:09]}  Qxh2# {[%clk 0:00:21]} 0-1


[Site "https://www.chess.com"]

[Event "Titled Tuesday Blitz July 4 Late 2023"]
[White "Paravyan, David"]
[Black "Mamedov, Rauf"]
[WhiteFideId "4194985"]
[BlackFideId "13401653"]
[WhiteElo "2980"]
[BlackElo "3058"]
[Result "0-1"]
[Round "8"]
[TimeControl "180+2"]
[Date "2023.07.04"]
[WhiteClock "0:00:05"]
[BlackClock "0:01:07"]
[Board "2"]

1. d4 {[%clk 0:03:00]}  d5 {[%clk 0:02:59]} 2. c4 {[%clk 0:03:01]}  e6 {[%clk 0:03:00]} 3. Nf3 {[%clk 0:03:01]}  c5 {[%clk 0:02:58]} 4. cxd5 {[%clk 0:03:00]}  exd5 {[%clk 0:02:58]} 5. g3 {[%clk 0:03:01]}  Nc6 {[%clk 0:02:57]} 6. Bg2 {[%clk 0:03:02]}  Nf6 {[%clk 0:02:58]} 7. O-O {[%clk 0:03:02]}  Be7 {[%clk 0:02:58]} 8. dxc5 {[%clk 0:03:02]}  Bxc5 {[%clk 0:02:58]} 9. a3 {[%clk 0:03:02]}  Ne4 {[%clk 0:02:56]} 10. b4 {[%clk 0:03:01]}  Be7 {[%clk 0:02:45]} 11. Nfd2 {[%clk 0:03:00]}  Bf6 {[%clk 0:02:37]} 12. Ra2 {[%clk 0:03:00]}  Bf5 {[%clk 0:02:35]} 13. Bb2 {[%clk 0:02:54]}  O-O {[%clk 0:02:24]} 14. e3 {[%clk 0:02:50]}  Bxb2 {[%clk 0:02:19]} 15. Rxb2 {[%clk 0:02:48]}  Qf6 {[%clk 0:02:19]} 16. Rb3 {[%clk 0:02:48]}  Rfd8 {[%clk 0:02:18]} 17. Qc1 {[%clk 0:02:25]}  Rac8 {[%clk 0:02:14]} 18. Qb2 {[%clk 0:02:24]}  Ne5 {[%clk 0:02:10]} 19. Qd4 {[%clk 0:01:43]}  b6 {[%clk 0:02:00]} 20. a4 {[%clk 0:01:15]}  Rc2 {[%clk 0:01:45]} 21. a5 {[%clk 0:00:55]}  h5 {[%clk 0:01:36]} 22. axb6 {[%clk 0:00:54]}  axb6 {[%clk 0:01:36]} 23. Ra3 {[%clk 0:00:54]}  h4 {[%clk 0:01:29]} 24. Ra6 {[%clk 0:00:53]}  h3 {[%clk 0:01:19]} 25. Bh1 {[%clk 0:00:53]}  Nxd2 {[%clk 0:01:10]} 26. Nxd2 {[%clk 0:00:54]}  Rxd2 {[%clk 0:01:10]} 27. Qxd2 {[%clk 0:00:54]}  Bd3 {[%clk 0:01:11]} 28. f4 {[%clk 0:00:09]}  Bxa6 {[%clk 0:01:10]} 29. Rd1 {[%clk 0:00:06]}  Nc4 {[%clk 0:01:09]} 30. Qd4 {[%clk 0:00:06]}  Qxd4 {[%clk 0:01:07]} 31. Rxd4 {[%clk 0:00:05]}  Nxe3 {[%clk 0:01:07]} 0-1


[Site "https://www.chess.com"]

[Event "Titled Tuesday Blitz July 4 Late 2023"]
[White "Bortnyk, Olexandr"]
[Black "Hamidi, Amir Mohammad"]
[WhiteFideId "14120828"]
[BlackFideId "12563285"]
[WhiteElo "3038"]
[BlackElo "2824"]
[Result "1/2-1/2"]
[Round "8"]
[TimeControl "180+2"]
[Date "2023.07.04"]
[WhiteClock "0:00:02"]
[BlackClock "0:00:28"]
[Board "4"]

1. e4 {[%clk 0:03:00]}  e6 {[%clk 0:02:59]} 2. Nf3 {[%clk 0:02:56]}  d5 {[%clk 0:02:59]} 3. Nc3 {[%clk 0:02:56]}  Nf6 {[%clk 0:02:59]} 4. e5 {[%clk 0:02:56]}  Ne4 {[%clk 0:02:57]} 5. Bd3 {[%clk 0:02:51]}  Nc5 {[%clk 0:02:56]} 6. Bb5+ {[%clk 0:02:40]}  c6 {[%clk 0:02:56]} 7. Bf1 {[%clk 0:02:39]}  d4 {[%clk 0:02:56]} 8. Ne2 {[%clk 0:02:39]}  d3 {[%clk 0:02:57]} 9. Nf4 {[%clk 0:02:38]}  dxc2 {[%clk 0:02:55]} 10. Qxc2 {[%clk 0:02:39]}  Nba6 {[%clk 0:02:54]} 11. d4 {[%clk 0:02:17]}  Nb4 {[%clk 0:02:53]} 12. Qc4 {[%clk 0:02:17]}  Nd7 {[%clk 0:02:30]} 13. a3 {[%clk 0:02:04]}  Nb6 {[%clk 0:02:28]} 14. Qb3 {[%clk 0:02:02]}  N4d5 {[%clk 0:02:28]} 15. Nd3 {[%clk 0:01:50]}  Be7 {[%clk 0:02:23]} 16. h4 {[%clk 0:01:47]}  Nd7 {[%clk 0:02:21]} 17. Be2 {[%clk 0:01:45]}  b6 {[%clk 0:02:21]} 18. Ng5 {[%clk 0:01:36]}  h6 {[%clk 0:02:19]} 19. Ne4 {[%clk 0:01:36]}  c5 {[%clk 0:02:17]} 20. dxc5 {[%clk 0:01:27]}  bxc5 {[%clk 0:02:17]} 21. O-O {[%clk 0:01:25]}  O-O {[%clk 0:02:01]} 22. h5 {[%clk 0:01:21]}  Ba6 {[%clk 0:01:46]} 23. Nf4 {[%clk 0:01:10]}  Bxe2 {[%clk 0:01:44]} 24. Nxe2 {[%clk 0:01:11]}  c4 {[%clk 0:01:25]} 25. Qg3 {[%clk 0:01:10]}  Kh8 {[%clk 0:01:24]} 26. Rd1 {[%clk 0:01:00]}  Qb6 {[%clk 0:01:20]} 27. Nf4 {[%clk 0:00:55]}  Nxf4 {[%clk 0:01:19]} 28. Bxf4 {[%clk 0:00:53]}  Nc5 {[%clk 0:01:19]} 29. Nd6 {[%clk 0:00:29]}  Bxd6 {[%clk 0:01:10]} 30. exd6 {[%clk 0:00:30]}  Nd3 {[%clk 0:01:06]} 31. d7 {[%clk 0:00:23]}  Qb5 {[%clk 0:00:54]} 32. b3 {[%clk 0:00:22]}  Qxd7 {[%clk 0:00:47]} 33. bxc4 {[%clk 0:00:19]}  Nxf4 {[%clk 0:00:47]} 34. Rxd7 {[%clk 0:00:02]}  Ne2+ {[%clk 0:00:46]} 35. Kh2 {[%clk 0:00:03]}  Nxg3 {[%clk 0:00:47]} 36. Kxg3 {[%clk 0:00:04]}  Kg8 {[%clk 0:00:44]} 37. Rc1 {[%clk 0:00:04]}  Rfc8 {[%clk 0:00:44]} 38. c5 {[%clk 0:00:04]}  Rc6 {[%clk 0:00:45]} 39. f3 {[%clk 0:00:03]}  Rac8 {[%clk 0:00:43]} 40. Rxa7 {[%clk 0:00:02]}  Rxc5 {[%clk 0:00:44]} 41. Rxc5 {[%clk 0:00:02]}  Rxc5 {[%clk 0:00:45]} 42. Kg4 {[%clk 0:00:02]}  Rg5+ {[%clk 0:00:45]} 43. Kf4 {[%clk 0:00:02]}  Rxg2 {[%clk 0:00:45]} 44. a4 {[%clk 0:00:02]}  Ra2 {[%clk 0:00:45]} 45. Ra8+ {[%clk 0:00:02]}  Kh7 {[%clk 0:00:45]} 46. Ra7 {[%clk 0:00:03]}  f6 {[%clk 0:00:44]} 47. a5 {[%clk 0:00:03]}  Ra4+ {[%clk 0:00:43]} 48. Kg3 {[%clk 0:00:03]}  e5 {[%clk 0:00:44]} 49. a6 {[%clk 0:00:03]}  Ra3 {[%clk 0:00:44]} 50. Kg4 {[%clk 0:00:03]}  Ra4+ {[%clk 0:00:42]} 51. Kf5 {[%clk 0:00:04]}  Rf4+ {[%clk 0:00:37]} 52. Ke6 {[%clk 0:00:04]}  Rxf3 {[%clk 0:00:37]} 53. Kf7 {[%clk 0:00:04]}  Ra3 {[%clk 0:00:34]} 54. Kf8 {[%clk 0:00:04]}  e4 {[%clk 0:00:33]} 55. Rxg7+ {[%clk 0:00:04]}  Kh8 {[%clk 0:00:34]} 56. a7 {[%clk 0:00:02]}  e3 {[%clk 0:00:28]} 57. Rg8+ {[%clk 0:00:02]}  Kh7 {[%clk 0:00:27]} 58. Rg7+ {[%clk 0:00:03]}  Kh8 {[%clk 0:00:28]} 59. Rg8+ {[%clk 0:00:01]}  Kh7 {[%clk 0:00:28]} 60. Rg7+ {[%clk 0:00:02]}  Kh8 {[%clk 0:00:28]} 1/2-1/2


[Site "https://www.chess.com"]

[Event "Titled Tuesday Blitz July 4 Late 2023"]
[White "Henriquez Villagra, Cristobal"]
[Black "Martinez Alcantara, Jose Eduardo"]
[WhiteFideId "3409350"]
[BlackFideId "3805662"]
[WhiteElo "2860"]
[BlackElo "3030"]
[Result "0-1"]
[Round "8"]
[TimeControl "180+2"]
[Date "2023.07.04"]
[WhiteClock "0:00:10"]
[BlackClock "0:00:29"]
[Board "5"]

1. e4 {[%clk 0:03:00]}  c5 {[%clk 0:03:00]} 2. Nf3 {[%clk 0:03:00]}  d6 {[%clk 0:03:00]} 3. Bb5+ {[%clk 0:03:00]}  Nd7 {[%clk 0:03:00]} 4. d4 {[%clk 0:02:49]}  cxd4 {[%clk 0:03:01]} 5. Qxd4 {[%clk 0:02:49]}  a6 {[%clk 0:03:02]} 6. Be2 {[%clk 0:02:49]}  Ngf6 {[%clk 0:03:01]} 7. Nc3 {[%clk 0:02:48]}  e6 {[%clk 0:02:53]} 8. O-O {[%clk 0:02:47]}  Qc7 {[%clk 0:02:51]} 9. a4 {[%clk 0:02:29]}  b6 {[%clk 0:02:51]} 10. Bg5 {[%clk 0:02:25]}  Bb7 {[%clk 0:02:50]} 11. Rfe1 {[%clk 0:02:24]}  h6 {[%clk 0:02:50]} 12. Bh4 {[%clk 0:02:24]}  Be7 {[%clk 0:02:46]} 13. Rad1 {[%clk 0:02:23]}  Ne5 {[%clk 0:02:27]} 14. Bg3 {[%clk 0:02:10]}  Nfd7 {[%clk 0:02:23]} 15. Nxe5 {[%clk 0:02:04]}  dxe5 {[%clk 0:02:23]} 16. Qe3 {[%clk 0:01:59]}  O-O {[%clk 0:02:10]} 17. Bd3 {[%clk 0:01:47]}  Rad8 {[%clk 0:02:04]} 18. Qe2 {[%clk 0:01:43]}  Nb8 {[%clk 0:02:04]} 19. Nb1 {[%clk 0:01:41]}  Nc6 {[%clk 0:02:03]} 20. c3 {[%clk 0:01:38]}  Nb8 {[%clk 0:01:57]} 21. Nd2 {[%clk 0:01:36]}  Bc6 {[%clk 0:01:57]} 22. Bxa6 {[%clk 0:01:20]}  Bxa4 {[%clk 0:01:56]} 23. Ra1 {[%clk 0:01:16]}  Bc6 {[%clk 0:01:54]} 24. Bc4 {[%clk 0:01:12]}  Nd7 {[%clk 0:01:51]} 25. b4 {[%clk 0:01:10]}  Bb7 {[%clk 0:01:49]} 26. Rec1 {[%clk 0:01:09]}  Bg5 {[%clk 0:01:49]} 27. Rc2 {[%clk 0:01:07]}  Nf6 {[%clk 0:01:47]} 28. Nf3 {[%clk 0:00:48]}  Bxe4 {[%clk 0:01:37]} 29. Bxe5 {[%clk 0:00:46]}  Qc6 {[%clk 0:01:38]} 30. Nd4 {[%clk 0:00:41]}  Qb7 {[%clk 0:01:20]} 31. Ba6 {[%clk 0:00:35]}  Qd5 {[%clk 0:01:20]} 32. f4 {[%clk 0:00:29]}  Bxc2 {[%clk 0:00:49]} 33. fxg5 {[%clk 0:00:27]}  Ne4 {[%clk 0:00:50]} 34. Bxg7 {[%clk 0:00:24]}  Kxg7 {[%clk 0:00:47]} 35. gxh6+ {[%clk 0:00:24]}  Kh8 {[%clk 0:00:43]} 36. Qxc2 {[%clk 0:00:21]}  Rg8 {[%clk 0:00:38]} 37. Nf3 {[%clk 0:00:21]}  Qf5 {[%clk 0:00:30]} 38. Rf1 {[%clk 0:00:15]}  Qf4 {[%clk 0:00:31]} 39. Bd3 {[%clk 0:00:10]}  Qe3+ {[%clk 0:00:29]} 0-1


[Site "https://www.chess.com"]

[Event "Titled Tuesday Blitz July 4 Late 2023"]
[White "Xiong, Jeffery"]
[Black "Erigaisi Arjun"]
[WhiteFideId "2047640"]
[BlackFideId "35009192"]
[WhiteElo "2946"]
[BlackElo "3145"]
[Result "1-0"]
[Round "8"]
[TimeControl "180+2"]
[Date "2023.07.04"]
[WhiteClock "0:01:22"]
[BlackClock "0:00:20"]
[Board "8"]

1. e4 {[%clk 0:03:00]}  d6 {[%clk 0:02:58]} 2. d4 {[%clk 0:03:01]}  g6 {[%clk 0:02:58]} 3. Nf3 {[%clk 0:03:00]}  Bg7 {[%clk 0:02:59]} 4. Be3 {[%clk 0:03:01]}  a6 {[%clk 0:02:58]} 5. c4 {[%clk 0:03:00]}  Bg4 {[%clk 0:02:55]} 6. Nbd2 {[%clk 0:02:55]}  c5 {[%clk 0:02:47]} 7. dxc5 {[%clk 0:02:51]}  dxc5 {[%clk 0:02:47]} 8. Bxc5 {[%clk 0:02:48]}  Bxb2 {[%clk 0:02:31]} 9. Rb1 {[%clk 0:02:48]}  Bc3 {[%clk 0:02:31]} 10. Qc2 {[%clk 0:02:44]}  Qa5 {[%clk 0:02:30]} 11. Bb6 {[%clk 0:02:39]}  Bxd2+ {[%clk 0:02:12]} 12. Nxd2 {[%clk 0:02:40]}  Qe5 {[%clk 0:02:05]} 13. h3 {[%clk 0:02:41]}  Bc8 {[%clk 0:01:58]} 14. Nf3 {[%clk 0:02:41]}  Qe6 {[%clk 0:01:56]} 15. Bd3 {[%clk 0:02:37]}  Nc6 {[%clk 0:01:51]} 16. O-O {[%clk 0:02:37]}  Qf6 {[%clk 0:01:41]} 17. Qe2 {[%clk 0:02:26]}  e5 {[%clk 0:01:37]} 18. Rfd1 {[%clk 0:02:23]}  Nge7 {[%clk 0:01:37]} 19. Be3 {[%clk 0:02:23]}  h6 {[%clk 0:01:35]} 20. c5 {[%clk 0:02:23]}  g5 {[%clk 0:01:35]} 21. Bc4 {[%clk 0:02:20]}  g4 {[%clk 0:01:26]} 22. hxg4 {[%clk 0:02:21]}  Bxg4 {[%clk 0:01:25]} 23. Rd6 {[%clk 0:02:21]}  Qg7 {[%clk 0:01:13]} 24. Rxb7 {[%clk 0:02:19]}  Rg8 {[%clk 0:01:03]} 25. Bxh6 {[%clk 0:02:19]}  Qh7 {[%clk 0:00:59]} 26. Qd3 {[%clk 0:01:38]}  Bxf3 {[%clk 0:00:45]} 27. Qxf3 {[%clk 0:01:39]}  Nd4 {[%clk 0:00:36]} 28. Qf6 {[%clk 0:01:33]}  Rxg2+ {[%clk 0:00:36]} 29. Kxg2 {[%clk 0:01:34]}  Qxe4+ {[%clk 0:00:35]} 30. f3 {[%clk 0:01:23]}  Qc2+ {[%clk 0:00:20]} 31. Kh3 {[%clk 0:01:22]} 1-0


[Site "https://www.chess.com"]